[Event "Paul Kerese Mälestusfestival 2022 Kiirturniir"]
[Site "Pärnu, Estonia Resort Hotel & Spa"]
[Date "????.??.??"]
[Round "2.8"]
[White "Golubovskis, Maksims"]
[Black "Kraini, Juri"]
[Result "1-0"]
[TimeControl "15 minutit partiile + 3 sek käigule"]
[WhiteTitle "FM"]
[WhiteElo "2209"]
[BlackElo "1690"]

1. e4 {[%clk 00:15:03]} {[%emt 00:00:02]} c5 {[%clk 00:15:05]} {[%emt
00:00:02]} 2. Nf3 {[%clk 00:15:05]} {[%emt 00:00:01]} Nf6 {[%clk 00:15:06]}
{[%emt 00:00:01]} 3. e5 {[%clk 00:14:42]} {[%emt 00:00:26]} Nd5 {[%clk
00:15:07]} {[%emt 00:00:01]} 4. Nc3 {[%clk 00:14:44]} {[%emt 00:00:01]} e6
{[%clk 00:15:08]} {[%emt 00:00:02]} 5. Nxd5 {[%clk 00:14:46]} {[%emt 00:00:01]}
exd5 {[%clk 00:15:10]} {[%emt 00:00:02]} 6. d4 {[%clk 00:14:48]} d6 {[%clk
00:15:08]} {[%emt 00:00:04]} 7. exd6 {[%clk 00:14:04]} {[%emt 00:00:47]} Bxd6
{[%clk 00:15:08]} {[%emt 00:00:04]} 8. Bb5+ {[%clk 00:13:56]} {[%emt 00:00:11]}
Nc6 {[%clk 00:15:01]} {[%emt 00:00:10]} 9. O-O {[%clk 00:13:52]} {[%emt
00:00:06]} O-O {[%clk 00:15:00]} {[%emt 00:00:04]} 10. dxc5 {[%clk 00:13:51]}
{[%emt 00:00:02]} Bxc5 {[%clk 00:15:01]} {[%emt 00:00:04]} 11. h3 {[%clk
00:13:52]} {[%emt 00:00:02]} Qb6 {[%clk 00:14:34]} {[%emt 00:00:29]} 12. Bd3
{[%clk 00:13:30]} {[%emt 00:00:26]} Nb4 {[%clk 00:14:03]} {[%emt 00:00:34]} 13.
c3 {[%clk 00:13:10]} {[%emt 00:00:23]} Nxd3 {[%clk 00:13:53]} {[%emt 00:00:13]}
14. Qxd3 {[%clk 00:13:12]} {[%emt 00:00:01]} Rd8 {[%clk 00:13:17]} {[%emt
00:00:38]} 15. b4 {[%clk 00:13:08]} {[%emt 00:00:08]} Be7 {[%clk 00:13:11]}
{[%emt 00:00:08]} 16. Be3 {[%clk 00:13:00]} {[%emt 00:00:11]} Qg6 {[%clk
00:12:50]} {[%emt 00:00:24]} 17. Qxg6 {[%clk 00:12:09]} {[%emt 00:00:53]} hxg6
{[%clk 00:12:51]} {[%emt 00:00:03]} 18. Rfe1 {[%clk 00:11:53]} {[%emt
00:00:20]} Bf6 {[%clk 00:12:47]} {[%emt 00:00:08]} 19. Bd4 {[%clk 00:11:52]}
{[%emt 00:00:04]} Bxd4 {[%clk 00:12:17]} {[%emt 00:00:32]} 20. Nxd4 {[%clk
00:11:54]} Kf8 {[%clk 00:12:19]} {[%emt 00:00:02]} 21. Rad1 {[%clk 00:08:54]}
{[%emt 00:03:02]} Bd7 {[%clk 00:12:18]} {[%emt 00:00:04]} 22. Nf3 {[%clk
00:08:38]} {[%emt 00:00:20]} Bf5 {[%clk 00:10:29]} {[%emt 00:01:51]} 23. g4
{[%clk 00:08:16]} {[%emt 00:00:25]} Be4 {[%clk 00:10:15]} {[%emt 00:00:18]} 24.
Ng5 {[%clk 00:08:11]} {[%emt 00:00:07]} Rac8 {[%clk 00:07:22]} {[%emt
00:02:56]} 25. Nxe4 {[%clk 00:06:07]} {[%emt 00:02:07]} dxe4 {[%clk 00:07:24]}
{[%emt 00:00:02]} 26. Rxd8+ {[%clk 00:06:08]} {[%emt 00:00:02]} Rxd8 {[%clk
00:07:25]} {[%emt 00:00:03]} 27. Rxe4 {[%clk 00:06:10]} Rd2 {[%clk 00:06:26]}
{[%emt 00:01:02]} 28. Rc4 {[%clk 00:06:07]} {[%emt 00:00:06]} Rxa2 {[%clk
00:04:44]} {[%emt 00:01:45]} 29. Rc8+ {[%clk 00:06:08]} {[%emt 00:00:01]} Ke7
{[%clk 00:04:46]} {[%emt 00:00:02]} 30. Rc7+ {[%clk 00:06:10]} {[%emt
00:00:02]} Ke6 {[%clk 00:04:47]} {[%emt 00:00:01]} 31. Rxb7 {[%clk 00:06:11]}
{[%emt 00:00:01]} Rc2 {[%clk 00:04:27]} {[%emt 00:00:23]} 32. Rc7 {[%clk
00:05:42]} {[%emt 00:00:32]} g5 {[%clk 00:04:19]} {[%emt 00:00:11]} 33. c4
{[%clk 00:04:44]} {[%emt 00:01:02]} Rb2 {[%clk 00:03:50]} {[%emt 00:00:31]} 34.
b5 {[%clk 00:04:31]} {[%emt 00:00:15]} Rb4 {[%clk 00:03:52]} {[%emt 00:00:03]}
35. Rc5 {[%clk 00:03:37]} {[%emt 00:00:58]} g6 {[%clk 00:03:27]} {[%emt
00:00:28]} 36. Kg2 {[%clk 00:03:09]} {[%emt 00:00:30]} Kd6 {[%clk 00:03:09]}
{[%emt 00:00:22]} 37. Rc6+ {[%clk 00:03:06]} {[%emt 00:00:06]} Kd7 {[%clk
00:03:08]} {[%emt 00:00:05]} 38. Kf3 {[%clk 00:02:22]} {[%emt 00:00:46]} Rb3+
{[%clk 00:03:07]} {[%emt 00:00:04]} 39. Ke4 {[%clk 00:02:21]} {[%emt 00:00:04]}
Rxh3 {[%clk 00:00:36]} {[%emt 00:02:34]} 40. Rf6 {[%clk 00:02:07]} {[%emt
00:00:17]} Ke7 {[%clk 00:00:29]} {[%emt 00:00:11]} 41. Ra6 {[%clk 00:02:08]}
{[%emt 00:00:01]} Rh4 {[%clk 00:00:30]} {[%emt 00:00:02]} 42. Rxa7+ {[%clk
00:02:02]} {[%emt 00:00:10]} Ke6 {[%clk 00:00:32]} {[%emt 00:00:01]} 43. Ra6+
{[%clk 00:01:51]} {[%emt 00:00:14]} Ke7 {[%clk 00:00:33]} {[%emt 00:00:01]} 44.
c5 {[%clk 00:01:26]} {[%emt 00:00:28]} Rxg4+ {[%clk 00:00:34]} {[%emt
00:00:03]} 45. Ke5 {[%clk 00:01:21]} {[%emt 00:00:08]} Rc4 {[%clk 00:00:21]}
{[%emt 00:00:15]} 46. Ra7+ {[%clk 00:01:19]} {[%emt 00:00:05]} Ke8 {[%clk
00:00:16]} {[%emt 00:00:08]} 47. Kd5 {[%clk 00:01:15]} {[%emt 00:00:07]} Rc1
{[%clk 00:00:15]} {[%emt 00:00:05]} 48. b6 {[%clk 00:01:16]} {[%emt 00:00:03]}
Kd8 {[%clk 00:00:07]} {[%emt 00:00:11]} 49. Rxf7 {[%clk 00:01:15]} {[%emt
00:00:03]} 1-0

[Event "Paul Kerese Mälestusfestival 2022 Kiirturniir"]
[Site "Pärnu, Estonia Resort Hotel & Spa"]
[Date "????.??.??"]
[Round "3.1"]
[White "Shirov, Alexei"]
[Black "Medar, Marti"]
[Result "1-0"]
[TimeControl "15 minutit partiile + 3 sek käigule"]
[WhiteTitle "GM"]
[WhiteFideId "2209390"]
[WhiteElo "2621"]
[BlackElo "2053"]

1. e4 {[%clk 00:15:04]} {[%emt 00:00:01]} d6 {[%clk 00:15:04]} {[%emt
00:00:02]} 2. d4 {[%clk 00:15:05]} {[%emt 00:00:01]} Nf6 {[%clk 00:15:06]}
{[%emt 00:00:02]} 3. Nc3 {[%clk 00:15:07]} {[%emt 00:00:02]} Nbd7 {[%clk
00:15:07]} {[%emt 00:00:02]} 4. g4 {[%clk 00:14:48]} {[%emt 00:00:22]} h6
{[%clk 00:15:07]} {[%emt 00:00:03]} 5. h3 {[%clk 00:14:33]} {[%emt 00:00:18]}
e5 {[%clk 00:15:06]} {[%emt 00:00:05]} 6. Nge2 {[%clk 00:14:32]} {[%emt
00:00:04]} c6 {[%clk 00:14:35]} {[%emt 00:00:34]} 7. a4 {[%clk 00:13:34]}
{[%emt 00:01:01]} a5 {[%clk 00:14:04]} {[%emt 00:00:33]} 8. Bg2 {[%clk
00:13:21]} {[%emt 00:00:16]} Qc7 {[%clk 00:13:24]} {[%emt 00:00:44]} 9. O-O
{[%clk 00:11:38]} {[%emt 00:01:46]} Nb6 {[%clk 00:12:26]} {[%emt 00:01:01]} 10.
f4 {[%clk 00:11:26]} {[%emt 00:00:14]} Be7 {[%clk 00:11:45]} {[%emt 00:00:44]}
11. Ng3 {[%clk 00:10:46]} {[%emt 00:00:44]} Be6 {[%clk 00:10:19]} {[%emt
00:01:28]} 12. b3 {[%clk 00:09:21]} {[%emt 00:01:28]} exd4 {[%clk 00:05:48]}
{[%emt 00:04:34]} 13. Qxd4 {[%clk 00:09:21]} {[%emt 00:00:03]} d5 {[%clk
00:05:26]} {[%emt 00:00:27]} 14. e5 {[%clk 00:06:40]} {[%emt 00:02:44]} Nfd7
{[%clk 00:04:57]} {[%emt 00:00:31]} 15. Kh1 {[%clk 00:06:42]} {[%emt 00:00:02]}
Bc5 {[%clk 00:04:38]} {[%emt 00:00:22]} 16. Qd3 {[%clk 00:06:42]} {[%emt
00:00:02]} g5 {[%clk 00:03:41]} {[%emt 00:01:00]} 17. Nce2 {[%clk 00:04:35]}
{[%emt 00:02:10]} gxf4 {[%clk 00:03:13]} {[%emt 00:00:32]} 18. Bxf4 {[%clk
00:04:36]} {[%emt 00:00:03]} Nxe5 {[%clk 00:02:46]} {[%emt 00:00:29]} 19. Qc3
{[%clk 00:04:30]} {[%emt 00:00:08]} Nbd7 {[%clk 00:02:39]} {[%emt 00:00:11]} 20.
Nd4 {[%clk 00:04:23]} {[%emt 00:00:09]} O-O-O {[%clk 00:01:54]} {[%emt
00:00:49]} 21. Rae1 {[%clk 00:04:15]} {[%emt 00:00:10]} Bb4 {[%clk 00:01:46]}
{[%emt 00:00:11]} 22. Qe3 {[%clk 00:04:16]} {[%emt 00:00:02]} Bxe1 {[%clk
00:00:37]} {[%emt 00:01:13]} 23. Rxe1 {[%clk 00:04:17]} {[%emt 00:00:02]} Rde8
{[%clk 00:00:32]} {[%emt 00:00:09]} 24. Bxe5 {[%clk 00:02:09]} {[%emt
00:02:11]} Nxe5 {[%clk 00:00:34]} {[%emt 00:00:01]} 25. Qxe5 {[%clk 00:02:10]}
{[%emt 00:00:01]} Qxe5 {[%clk 00:00:36]} {[%emt 00:00:01]} 26. Rxe5 {[%clk
00:02:12]} {[%emt 00:00:01]} Bd7 {[%clk 00:00:38]} 27. Rxe8+ {[%clk 00:01:48]}
{[%emt 00:00:28]} Rxe8 {[%clk 00:00:40]} {[%emt 00:00:01]} 28. Kg1 {[%clk
00:01:49]} {[%emt 00:00:01]} Re1+ {[%clk 00:00:18]} {[%emt 00:00:25]} 29. Kf2
{[%clk 00:01:46]} {[%emt 00:00:05]} Rd1 {[%clk 00:00:19]} {[%emt 00:00:03]} 30.
Nf3 {[%clk 00:01:02]} {[%emt 00:00:47]} Rc1 {[%clk 00:00:14]} {[%emt 00:00:09]}
31. Ne1 {[%clk 00:01:03]} {[%emt 00:00:02]} Rb1 {[%clk 00:00:06]} {[%emt
00:00:12]} 32. Ne2 {[%clk 00:00:56]} {[%emt 00:00:10]} Kc7 {[%clk 00:00:06]}
{[%emt 00:00:03]} 33. Nc3 {[%clk 00:00:53]} {[%emt 00:00:04]} Ra1 {[%clk
00:00:07]} {[%emt 00:00:03]} 34. Ke2 {[%clk 00:00:40]} {[%emt 00:00:16]} Be6
{[%clk 00:00:09]} {[%emt 00:00:02]} 35. Kd2 {[%clk 00:00:39]} {[%emt 00:00:03]}
Kd6 {[%clk 00:00:09]} {[%emt 00:00:04]} 36. Nf3 {[%clk 00:00:22]} {[%emt
00:00:19]} f5 {[%clk 00:00:07]} {[%emt 00:00:06]} 37. gxf5 {[%clk 00:00:11]}
{[%emt 00:00:14]} Bxf5 {[%clk 00:00:08]} {[%emt 00:00:01]} 38. Ne2 {[%clk
00:00:08]} {[%emt 00:00:06]} Bd7 {[%clk 00:00:08]} {[%emt 00:00:04]} 39. Nfd4
{[%clk 00:00:06]} {[%emt 00:00:04]} c5 {[%clk 00:00:09]} {[%emt 00:00:03]} 40.
Nb5+ {[%clk 00:00:05]} {[%emt 00:00:04]} Ke5 {[%clk 00:00:11]} 41. h4 {[%clk
00:00:06]} {[%emt 00:00:02]} Bg4 {[%clk 00:00:11]} {[%emt 00:00:03]} 42. Nc1
{[%clk 00:00:08]} {[%emt 00:00:01]} d4 {[%clk 00:00:08]} {[%emt 00:00:06]} 43.
Nd3+ {[%clk 00:00:09]} {[%emt 00:00:02]} Kf5 {[%clk 00:00:05]} {[%emt
00:00:05]} 44. Nf2 {[%clk 00:00:10]} {[%emt 00:00:01]} Rg1 {[%clk 00:00:04]}
{[%emt 00:00:05]} 45. Be4+ {[%clk 00:00:08]} {[%emt 00:00:04]} Kf4 {[%clk
00:00:06]} {[%emt 00:00:03]} 46. Nd6 {[%clk 00:00:09]} {[%emt 00:00:01]} b6
{[%emt 00:00:01]} 47. Nd3+ {[%clk 00:00:08]} {[%emt 00:00:04]} Kg3 {[%clk
00:00:09]} {[%emt 00:00:02]} 48. c4 {[%clk 00:00:09]} {[%emt 00:00:03]} dxc3+
{[%clk 00:00:11]} {[%emt 00:00:01]} 49. Kxc3 {[%clk 00:00:10]} {[%emt
00:00:01]} Kxh4 {[%clk 00:00:12]} {[%emt 00:00:02]} 50. Nc4 {[%clk 00:00:12]}
Be2 {[%clk 00:00:11]} {[%emt 00:00:04]} 51. Nxb6 {[%clk 00:00:13]} {[%emt
00:00:03]} Rg3 {[%clk 00:00:13]} {[%emt 00:00:01]} 52. Nc4 {[%clk 00:00:10]}
{[%emt 00:00:06]} Kg5 {[%clk 00:00:14]} {[%emt 00:00:02]} 53. Nxa5 {[%clk
00:00:10]} {[%emt 00:00:03]} Re3 {[%clk 00:00:15]} {[%emt 00:00:02]} 54. Bh7
{[%clk 00:00:07]} {[%emt 00:00:04]} Re7 {[%clk 00:00:17]} {[%emt 00:00:03]} 55.
Kd2 {[%clk 00:00:08]} {[%emt 00:00:02]} Rxh7 {[%clk 00:00:16]} {[%emt
00:00:05]} 56. Kxe2 {[%clk 00:00:10]} Re7+ {[%clk 00:00:17]} {[%emt 00:00:01]}
57. Kf3 {[%clk 00:00:11]} {[%emt 00:00:01]} Rf7+ {[%clk 00:00:20]} {[%emt
00:00:01]} 58. Kg3 {[%clk 00:00:13]} {[%emt 00:00:01]} Re7 {[%clk 00:00:20]}
{[%emt 00:00:03]} 59. Nxc5 {[%clk 00:00:14]} {[%emt 00:00:02]} Re3+ {[%clk
00:00:21]} {[%emt 00:00:01]} 60. Kf2 {[%clk 00:00:16]} Rc3 {[%clk 00:00:20]}
{[%emt 00:00:05]} 61. Ne4+ {[%clk 00:00:18]} Kf5 {[%clk 00:15:03]} {[%emt
00:00:28]} 1-0

[Event "Paul Kerese Mälestusfestival 2022 Kiirturniir"]
[Site "Pärnu, Estonia Resort Hotel & Spa"]
[Date "????.??.??"]
[Round "3.2"]
[White "Olde, Grete"]
[Black "Agrest, Evgenij"]
[Result "0-1"]
[TimeControl "15 minutit partiile + 3 sek käigule"]
[WhiteTitle "WCM"]
[BlackTitle "GM"]
[WhiteElo "2054"]
[BlackElo "2563"]

1. e4 {[%clk 00:15:03]} {[%emt 00:00:01]} c6 {[%clk 00:14:59]} {[%emt
00:00:07]} 2. d4 {[%clk 00:15:03]} {[%emt 00:00:03]} d5 {[%clk 00:15:00]}
{[%emt 00:00:02]} 3. e5 {[%clk 00:15:04]} {[%emt 00:00:03]} c5 {[%clk
00:14:53]} {[%emt 00:00:10]} 4. dxc5 {[%clk 00:14:58]} {[%emt 00:00:08]} e6
{[%clk 00:14:54]} {[%emt 00:00:02]} 5. Be3 {[%clk 00:14:46]} {[%emt 00:00:15]}
Nh6 {[%clk 00:14:43]} {[%emt 00:00:13]} 6. c3 {[%clk 00:13:48]} {[%emt
00:01:02]} Nf5 {[%clk 00:13:08]} {[%emt 00:01:38]} 7. Bd4 {[%clk 00:13:25]}
{[%emt 00:00:26]} Nc6 {[%clk 00:12:48]} {[%emt 00:00:22]} 8. Nf3 {[%clk
00:12:29]} {[%emt 00:00:59]} Bd7 {[%clk 00:12:20]} {[%emt 00:00:31]} 9. Bd3
{[%clk 00:11:07]} {[%emt 00:01:26]} Nfxd4 {[%clk 00:11:13]} {[%emt 00:01:10]}
10. cxd4 {[%clk 00:10:53]} {[%emt 00:00:18]} b6 {[%clk 00:11:14]} {[%emt
00:00:02]} 11. cxb6 {[%clk 00:06:54]} {[%emt 00:04:01]} Qxb6 {[%clk 00:11:14]}
{[%emt 00:00:03]} 12. Qe2 {[%clk 00:05:21]} {[%emt 00:01:37]} Nxd4 {[%clk
00:09:29]} {[%emt 00:01:48]} 13. Nxd4 {[%clk 00:05:22]} {[%emt 00:00:02]} Qxd4
{[%clk 00:09:29]} {[%emt 00:00:02]} 14. Nc3 {[%clk 00:04:53]} {[%emt 00:00:32]}
Bb4 {[%clk 00:08:49]} {[%emt 00:00:43]} 15. Rc1 {[%clk 00:04:15]} {[%emt
00:00:42]} O-O {[%clk 00:08:29]} {[%emt 00:00:22]} 16. O-O {[%clk 00:04:13]}
{[%emt 00:00:05]} Qb6 {[%clk 00:08:30]} {[%emt 00:00:02]} 17. Rfd1 {[%clk
00:04:00]} {[%emt 00:00:17]} Rab8 {[%clk 00:08:13]} {[%emt 00:00:19]} 18. Qg4
{[%clk 00:02:33]} {[%emt 00:01:29]} Be8 {[%clk 00:07:04]} {[%emt 00:01:12]} 19.
Bc2 {[%clk 00:01:54]} {[%emt 00:00:42]} f6 {[%clk 00:06:33]} {[%emt 00:00:35]}
20. Qh4 {[%clk 00:01:17]} {[%emt 00:00:40]} Bg6 {[%clk 00:06:22]} {[%emt
00:00:13]} 21. Bxg6 {[%clk 00:01:02]} {[%emt 00:00:18]} hxg6 {[%clk 00:06:22]}
{[%emt 00:00:03]} 22. exf6 {[%clk 00:01:00]} {[%emt 00:00:06]} Rxf6 {[%clk
00:06:21]} {[%emt 00:00:03]} 23. Rd4 {[%clk 00:00:44]} {[%emt 00:00:19]} Bd6
{[%clk 00:05:21]} {[%emt 00:01:03]} 24. Nd1 {[%clk 00:00:34]} {[%emt 00:00:14]}
Be5 {[%clk 00:05:05]} {[%emt 00:00:18]} 25. Rd3 {[%clk 00:00:20]} {[%emt
00:00:17]} Qa5 {[%clk 00:04:39]} {[%emt 00:00:31]} 26. b4 {[%clk 00:00:11]}
{[%emt 00:00:13]} Qxa2 {[%clk 00:04:08]} {[%emt 00:00:33]} 27. Ne3 {[%clk
00:00:06]} {[%emt 00:00:08]} Qb2 {[%clk 00:03:40]} {[%emt 00:00:30]} 28. Rcd1
{[%clk 00:00:06]} {[%emt 00:00:04]} Qxb4 {[%emt 00:00:26]} 29. Ng4 {[%clk
00:00:06]} Rf4 {[%clk 00:03:16]} {[%emt 00:00:05]} 30. h3 {[%clk 00:00:08]}
{[%emt 00:00:02]} Bd6 {[%clk 00:02:44]} {[%emt 00:00:34]} 31. Qg5 {[%clk
00:00:07]} {[%emt 00:00:05]} Kf7 {[%clk 00:02:28]} {[%emt 00:00:19]} 32. Rc1
{[%clk 00:00:09]} {[%emt 00:00:02]} Rf5 {[%clk 00:02:23]} {[%emt 00:00:07]} 33.
Qe3 {[%clk 00:00:09]} {[%emt 00:00:02]} Qb6 {[%clk 00:02:13]} {[%emt 00:00:13]}
34. Qe2 {[%clk 00:00:08]} {[%emt 00:00:04]} Qb2 {[%clk 00:01:25]} {[%emt
00:00:52]} 35. Rc2 {[%clk 00:00:09]} {[%emt 00:00:03]} Qa1+ {[%clk 00:01:21]}
{[%emt 00:00:06]} 36. Rd1 {[%clk 00:00:11]} {[%emt 00:00:02]} Rb1 {[%clk
00:01:22]} 37. Rcd2 {[%clk 00:00:13]} {[%emt 00:00:02]} Bf4 {[%clk 00:00:47]}
{[%emt 00:00:38]} 38. Rxb1 {[%clk 00:00:15]} {[%emt 00:00:01]} Qxb1+ {[%clk
00:00:49]} 39. Rd1 {[%clk 00:00:18]} Qb6 {[%clk 00:00:50]} {[%emt 00:00:01]} 40.
Qd3 {[%clk 00:00:16]} {[%emt 00:00:06]} Bd6 {[%clk 00:00:42]} {[%emt 00:00:11]}
41. Rb1 {[%clk 00:00:18]} {[%emt 00:00:01]} Qc7 {[%clk 00:00:40]} {[%emt
00:00:05]} 42. Qa6 {[%clk 00:00:20]} {[%emt 00:00:02]} Kg8 {[%clk 00:00:37]}
{[%emt 00:00:05]} 43. Qe2 {[%clk 00:00:14]} {[%emt 00:00:09]} Qc8 {[%clk
00:00:19]} {[%emt 00:00:21]} 44. g3 {[%clk 00:00:12]} {[%emt 00:00:05]} Rf7
{[%clk 00:00:20]} {[%emt 00:00:02]} 45. Re1 {[%clk 00:00:13]} {[%emt 00:00:03]}
Re7 {[%clk 00:00:17]} {[%emt 00:00:04]} 46. Ne3 {[%clk 00:00:14]} {[%emt
00:00:03]} Bc5 {[%clk 00:00:17]} {[%emt 00:00:04]} 47. Nxd5 {[%clk 00:00:13]}
{[%emt 00:00:04]} exd5 {[%clk 00:00:16]} {[%emt 00:00:03]} 48. Qxe7 {[%clk
00:00:15]} {[%emt 00:00:02]} Bxe7 {[%clk 00:00:18]} {[%emt 00:00:01]} 0-1